bitfinex/quotes_ETHUSD_20260209
["timestamp","ask_amount","ask_price","bid_price","bid_amount"]
[1770633389145,0.002,2024.7,2024.3,1.23498775]
[1770633389770,1.23426314,2025.5,2024.4,0.95742892]
[1770633389975,1.23426314,2025.5,2024.2,1.23502139]
[1770633390362,0.50373801,2025.5,2023.7,0.95742892]
[1770633390549,0.50373801,2025.5,2024.0,1.23514829]
[1770633390745,0.50373801,2025.5,2024.0,0.95742892]
[1770633391053,0.50373801,2025.5,2024.0,2.19259524]
[1770633391551,0.50373801,2025.5,2024.1,0.95742892]
[1770633391982,0.50373801,2025.5,2024.1,2.19254397]
[1770633392179,0.43021581,2025.5,2024.1,2.1925207]
[1770633392361,1.23432408,2025.4,2024.2,0.95742892]
[1770633393062,0.0735222,2025.1,2023.6,1.23537607]
[1770633393281,0.0735222,2025.1,2023.7,1.2353214]
[1770633393453,0.0735222,2025.1,2023.7,1.23536019]
[1770633393653,0.43021581,2025.2,2023.3,5.01583741]
[1770633393856,0.43021581,2025.2,2023.5,1.23547181]
[1770633394164,0.0735222,2024.8,2023.1,2.19311921]
[1770633394362,1.23481181,2024.6,2023.1,0.95742892]
[1770633394561,0.0735222,2024.5,2022.7,2.19336347]
[1770633394976,0.0735222,2024.5,2022.9,0.95742892]
[1770633395176,3.453,2024.4,2022.9,0.95742892]
[1770633395503,3.453,2024.4,2022.7,1.23595611]
[1770633395661,3.453,2024.4,2022.8,1.23591046]
[1770633396010,3.453,2024.4,2022.8,0.95742892]
[1770633396166,3.453,2024.4,2022.9,1.2358485]
[1770633396485,1.23499481,2024.3,2023.3,0.001]
[1770633397293,10.63909568,2023.9,2022.3,0.001]
[1770633397590,0.1759222,2023.1,2021.7,0.003]
[1770633397888,0.9081193,2022.7,2021.7,0.003]
[1770633398190,0.9816415,2022.4,2021.4,0.001]
[1770633398487,1.23621618,2022.3,2021.4,0.001]
[1770633400789,4.94486475,2022.5,2021.4,0.001]
[1770633401192,0.9081193,2022.4,2021.4,0.001]
[1770633401401,0.9081193,2022.4,2020.6,0.95842892]
[1770633401711,0.9081193,2022.4,2020.6,1.23824734]
[1770633401712,0.9081193,2022.1,2020.6,1.23824734]
[1770633401866,0.9081193,2022.1,2020.6,0.001]
[1770633402060,0.9081193,2022.1,2020.6,1.23825266]
[1770633402261,0.9081193,2022.1,2020.6,0.001]
[1770633402866,2.1445189,2022.0,2020.6,0.001]
[1770633403697,0.9081193,2021.9,2020.6,0.001]
[1770633403894,1.2363996,2022.0,2020.6,0.001]
[1770633403895,4.3631193,2021.8,2020.6,0.001]
[1770633404109,0.9081193,2021.5,2020.4,0.001]
[1770633404398,0.0735222,2021.6,2018.4,0.95742892]
[1770633404399,0.9081193,2020.7,2018.4,0.95742892]
[1770633404559,0.2582,2019.6,2018.4,0.95742892]
[1770633404761,0.2582,2019.6,2018.6,0.95742892]
[1770633404965,1.49612235,2019.6,2018.8,0.95742892]
[1770633405190,1.49612235,2019.6,2018.3,10.77795704]
[1770633405191,1.49612235,2019.6,2018.1,0.1350789]
[1770633405519,2.46620283,2019.6,2018.1,0.1350789]
[1770633405798,2.46620283,2019.6,2017.5,4.95641011]
[1770633405799,0.97008048,2019.1,2017.5,4.95641011]
[1770633405980,0.1024,2019.4,2017.8,4.95571878]
[1770633406187,0.0735222,2019.1,2017.1,1.02020899]
[1770633406363,1.04277537,2019.1,2017.4,1.23917385]
[1770633406562,1.04277537,2019.1,2017.2,0.94668679]
[1770633406563,0.1024,2019.4,2017.9,4.95561077]
[1770633406895,0.1024,2019.4,2016.8,0.94668679]
[1770633406896,1.23860483,2018.4,2016.8,0.94668679]
[1770633407095,4.69460483,2018.4,2016.8,0.94668679]
[1770633407302,0.97008048,2018.7,2016.8,0.94668679]
[1770633407595,1.23835942,2018.8,2017.2,2.0485]
[1770633407768,1.23835942,2018.8,2017.2,0.94668679]
[1770633407965,4.69424115,2019.0,2017.4,0.94668679]
[1770633408168,1.23793018,2019.5,2018.0,0.94668679]
[1770633408414,1.23793018,2019.5,2018.1,3.358441]
[1770633408693,0.0735222,2019.2,2017.6,0.94668679]
[1770633408904,1.23817542,2019.1,2017.8,0.94668679]
[1770633409073,1.23793018,2019.5,2018.3,0.001]
[1770633410547,1.31145238,2019.5,2018.3,0.001]
[1770633410719,1.23793018,2019.5,2018.3,0.94768679]
[1770633410872,0.97008048,2020.0,2018.6,1.23848211]
[1770633410873,8.40868427,2020.0,2018.6,1.23848211]
[1770633411072,8.40868427,2020.0,2018.4,1.23859918]
[1770633411302,0.0735222,2019.6,2018.4,0.94668679]
[1770633411511,0.0735222,2019.3,2018.3,0.001]
[1770633411707,0.0735222,2018.7,2018.3,0.001]
[1770633411906,0.0735222,2018.4,2018.0,0.001]
[1770633412200,0.0735222,2018.7,2018.0,0.001]
[1770633412374,0.0735222,2018.1,2018.0,0.001]
[1770633412575,0.0735222,2018.7,2018.0,0.001]
[1770633413109,1.23848211,2018.6,2018.0,0.001]
[1770633413340,1.23845979,2018.7,2018.0,0.001]
[1770633414281,1.31198199,2018.7,2018.0,0.001]
[1770633414604,0.0735222,2018.4,2017.2,0.001]
[1770633414974,0.0735222,2018.1,2017.2,0.001]
[1770633415175,0.0735222,2017.8,2017.2,0.001]
[1770633415602,0.0735222,2017.5,2016.4,1.23979876]
[1770633415804,3.46,2017.8,2016.5,2.18645303]
[1770633415978,0.0735222,2017.6,2016.0,0.94668679]
[1770633416179,3.46,2017.8,2016.0,0.94668679]
[1770633416180,0.0735222,2017.7,2016.5,1.23976084]
[1770633416398,0.0735222,2017.7,2016.5,1.23976538]
[1770633416601,3.46,2017.8,2016.5,1.23976538]
[1770633416809,3.46,2017.8,2016.5,1.23976664]
[1770633417012,1.2389924,2017.8,2016.5,0.94668679]
[1770633417586,0.0735222,2017.7,2016.1,2.18670464]
[1770633418194,0.0735222,2017.7,2016.1,1.24001785]
[1770633418390,3.461,2017.6,2016.1,0.94668679]
[1770633418585,3.461,2017.7,2016.2,0.94668679]
[1770633418988,2.20903594,2017.9,2016.5,4.982665]
[1770633419190,2.20903594,2017.9,2016.5,0.94668679]
[1770633419510,1.23895546,2017.9,2016.5,0.94668679]
[1770633420315,1.31206567,2018.6,2016.7,0.94668679]
[1770633420540,1.23854347,2018.6,2016.9,0.94668679]
[1770633420718,0.0735222,2018.4,2016.9,0.94668679]
[1770633420920,1.23854347,2018.6,2017.0,8.56194455]
[1770633421094,1.31206567,2018.6,2017.0,1.23946455]
[1770633421418,1.23829808,2018.9,2017.2,12.13616779]
[1770633421620,5.02671453,2019.0,2017.5,0.94668679]
[1770633421621,1.2382754,2019.0,2017.5,0.94668679]
[1770633421823,1.24007501,2019.3,2017.9,0.94668679]
[1770633422122,1.24007501,2019.3,2018.0,0.94668679]
[1770633422317,1.24007501,2019.3,2017.6,0.94668679]
[1770633422507,1.24007501,2019.3,2017.9,2.37793]
[1770633422708,1.24007501,2019.3,2018.0,0.94668679]
[1770633423032,1.24007501,2019.3,2018.2,4.9548179]
[1770633423033,0.002,2019.3,2018.2,4.9548179]
[1770633423192,0.0755222,2019.3,2017.8,0.94668679]
[1770633423388,0.0755222,2019.3,2018.3,1.23865544]
[1770633423621,0.002,2019.3,2018.2,1.23869735]
[1770633423918,0.002,2019.3,2018.3,1.23866479]
[1770633424521,0.002,2019.3,2018.3,2.18535158]
[1770633426022,0.002,2019.3,2018.4,0.94668679]
[1770633426223,0.002,2019.3,2018.3,1.23866479]
[1770633426422,0.002,2019.3,2018.4,0.94668679]
[1770633426629,0.00117272,2019.5,2018.6,0.94668679]
[1770633426831,0.00117272,2019.5,2018.9,3.724906]
[1770633427026,0.00117272,2019.5,2018.9,14.02612187]
[1770633427231,1.23759656,2020.1,2019.0,0.94668679]
[1770633427610,1.23941607,2020.4,2019.0,0.94668679]
[1770633427810,1.23941607,2020.4,2019.1,0.94668679]
[1770633428411,1.23941607,2020.4,2018.9,1.23829808]
[1770633429107,1.23941607,2020.4,2018.8,5.89987912]
[1770633429316,1.23941607,2020.4,2018.9,0.94668679]
[1770633429514,0.002,2020.4,2019.1,0.94668679]
[1770633430554,0.002,2020.4,2018.8,4.95319233]
[1770633430725,0.0735222,2020.2,2018.8,4.95319233]
[1770633430925,0.0735222,2019.9,2018.7,1.23835942]
[1770633431441,1.23774631,2019.8,2018.7,1.23835942]
[1770633431639,1.23774631,2019.8,2018.7,2.18504621]
[1770633431847,1.23937911,2020.4,2018.9,0.94668679]
[1770633432050,0.0735222,2020.3,2018.9,0.94668679]
[1770633432549,1.23937911,2020.4,2018.9,0.94668679]
[1770633432930,1.31290131,2020.4,2019.1,0.94668679]
[1770633433442,1.23937911,2020.4,2019.2,1.2381141]
[1770633433837,1.23937911,2020.4,2019.3,0.94668679]
[1770633434151,1.31290131,2020.4,2019.1,1.23813421]
[1770633434448,1.31290131,2020.4,2019.1,1.23817322]
[1770633434619,1.31290131,2020.4,2019.1,1.23816054]
[1770633434820,1.23937911,2020.4,2019.1,1.23816054]
[1770633435232,0.0735222,2020.3,2019.1,1.23816054]
[1770633435449,1.23950123,2020.2,2018.9,1.23829808]
[1770633435946,1.23950123,2020.2,2019.0,0.98285404]
[1770633436617,1.23950123,2020.2,2019.2,0.98285404]
[1770633436618,0.002,2020.2,2019.2,0.98285404]
[1770633437476,0.002,2020.2,2019.4,0.98285404]
[1770633437753,3.461,2020.8,2019.7,0.98285404]
[1770633437925,1.23705138,2021.0,2019.7,0.98285404]
[1770633438128,1.23699771,2021.1,2019.7,0.98285404]
[1770633438326,4.94590582,2021.9,2020.1,0.93688538]
[1770633438526,0.0735222,2021.5,2020.1,0.93688538]
[1770633438820,4.94590582,2021.9,2020.3,0.93688538]
[1770633439248,0.0735222,2021.7,2019.9,0.93688538]
[1770633439538,0.0735222,2021.7,2020.0,1.2376145]
[1770633439539,0.0735222,2021.4,2020.0,1.2376145]
[1770633440461,0.0735222,2021.1,2019.6,0.93688538]
[1770633440625,0.0735222,2020.7,2019.4,4.95193365]
[1770633440831,0.0735222,2020.7,2019.4,1.23794401]
[1770633441028,0.0735222,2020.7,2019.4,1.23797928]
[1770633441227,0.0735222,2020.7,2019.6,1.23785363]
[1770633441462,0.0735222,2020.7,2019.2,0.93688538]
[1770633441671,1.23725626,2020.6,2019.4,0.93688538]
[1770633441827,1.23701138,2021.0,2019.4,1.01040758]
[1770633442023,1.23701138,2021.0,2019.4,0.93688538]
[1770633442440,1.23701138,2021.0,2019.4,1.01040758]
[1770633443088,1.23701138,2021.0,2019.4,0.93688538]
[1770633443231,1.23701138,2021.0,2019.3,1.23805279]
[1770633443232,0.0735222,2020.6,2019.3,1.23805279]
[1770633443561,0.0735222,2020.6,2018.9,5.88909654]
[1770633443562,1.2371338,2020.8,2019.2,0.93688538]
[1770633443936,0.0735222,2020.7,2019.2,0.93688538]
[1770633445032,0.0735222,2020.4,2019.0,1.23817542]
[1770633445429,0.0735222,2020.4,2018.7,2.17526305]
[1770633445625,1.23743998,2020.3,2018.8,2.1752448]
[1770633446035,2.29639156,2020.3,2018.8,1.23835942]
[1770633446428,0.0735222,2020.0,2018.8,1.23835942]
[1770633446866,0.0735222,2020.0,2018.7,1.23840546]
[1770633447374,0.0735222,2020.0,2018.6,1.238437]
[1770633447590,0.0735222,2019.7,2018.5,0.001]
[1770633447744,0.0735222,2019.4,2018.5,0.001]
[1770633448103,0.0735222,2019.4,2018.3,0.001]
[1770633448104,0.0735222,2019.0,2018.3,0.001]
[1770633448382,0.0735222,2019.0,2017.5,0.93688538]
[1770633448383,0.0735222,2019.0,2017.6,1.23904647]
[1770633448549,0.0735222,2018.7,2017.4,5.0]
[1770633448888,3.46,2018.7,2017.4,10.89373317]
[1770633449076,0.0735222,2019.0,2017.8,1.23893752]
[1770633449368,3.46,2019.0,2017.9,1.23890568]
[1770633449741,3.46,2019.0,2017.8,0.001]
[1770633449742,1.23829808,2018.9,2017.8,0.001]
[1770633451446,1.23780759,2019.7,2018.0,0.93688538]
[1770633451647,3.461,2019.6,2018.0,0.93688538]
[1770633451951,1.23793018,2019.5,2018.2,1.01040758]
[1770633452274,1.23793018,2019.5,2018.2,0.93688538]
[1770633452675,1.23791529,2019.6,2018.2,1.01040758]
[1770633453058,1.23791529,2019.6,2018.2,0.93688538]
[1770633453846,1.23791529,2019.6,2018.3,1.2386662]
[1770633454502,1.23791529,2019.6,2018.4,0.93688538]
[1770633455902,3.461,2020.0,2018.4,0.93688538]
[1770633456072,1.23737873,2020.4,2018.6,1.01040758]
[1770633456278,0.0735222,2020.3,2018.6,0.93688538]
[1770633456496,0.0735222,2020.0,2018.5,1.23854347]
[1770633456802,0.0735222,2019.7,2018.4,1.23858516]
[1770633457295,0.0735222,2019.7,2018.4,1.23859944]
[1770633458304,1.23786888,2019.6,2018.3,4.95441934]
[1770633458499,1.23786888,2019.6,2018.3,5.89130472]
[1770633458805,1.23774631,2019.9,2018.5,0.93688538]
[1770633459307,4.94976461,2020.3,2018.7,1.01040758]
[1770633459511,5.68386936,2020.4,2018.7,1.01040758]
[1770633459512,3.461,2020.4,2018.7,1.01040758]
[1770633459814,1.23707259,2020.9,2019.5,0.93688538]
[1770633459995,4.69795017,2021.2,2019.7,0.93688538]
[1770633460201,4.94801712,2021.1,2019.8,1.23774631]
[1770633460401,4.94801712,2021.1,2019.7,1.23776305]
[1770633460776,4.94801712,2021.1,2019.7,2.17464843]
[1770633461403,0.0735222,2021.0,2019.6,1.23782826]
[1770633461804,1.05895158,2021.0,2019.7,1.23780329]
[1770633462307,1.23707259,2020.9,2019.4,1.23799148]
[1770633462480,1.23707259,2020.9,2019.5,0.93688538]
[1770633464192,4.94781378,2021.1,2019.6,1.23786888]
[1770633464812,4.94781378,2021.1,2019.7,0.93688538]
[1770633466411,4.94781378,2021.1,2019.8,1.23774631]
[1770633467212,4.69791147,2021.2,2019.9,0.98980294]
[1770633467591,4.69791147,2021.2,2019.9,0.91628074]
[1770633468296,3.461,2021.2,2020.1,0.91628074]
[1770633468501,4.69789623,2021.2,2020.2,0.91628074]
[1770633468687,3.461,2021.2,2020.2,0.91628074]
[1770633469009,4.69789469,2021.2,2020.2,0.91628074]
[1770633469409,4.69789162,2021.2,2020.2,0.91628074]
[1770633469800,1.23874872,2021.5,2020.2,0.91628074]
[1770633470387,0.002,2021.5,2020.3,2.15372072]
[1770633470586,0.002,2021.5,2020.3,1.23743998]
[1770633472114,0.002,2021.5,2020.4,0.91628074]
[1770633472317,0.002,2021.5,2020.5,1.23731749]
[1770633472538,0.002,2021.5,2020.6,0.91628074]
[1770633472823,0.002,2021.5,2020.5,1.31083969]
[1770633472824,0.002,2021.5,2020.7,0.91628074]
[1770633473198,0.002,2021.5,2020.9,0.91628074]
[1770633474823,0.002,2021.7,2021.1,0.91628074]
[1770633475119,0.002,2022.6,2021.1,0.91628074]
[1770633475120,4.94439642,2022.5,2021.1,0.91628074]
[1770633475526,1.23609394,2022.5,2021.3,0.98980294]
[1770633475712,1.23807706,2022.6,2021.3,0.98980294]
[1770633475912,0.002,2022.6,2021.3,0.98980294]
[1770633476210,0.002,2022.6,2021.7,0.91628074]
[1770633476592,0.002,2022.6,2021.9,0.91628074]
[1770633476796,0.002,2022.6,2022.1,0.91628074]
[1770633477020,0.002,2022.6,2022.1,0.98980294]
[1770633477232,0.01939391,2023.4,2022.1,0.98980294]
[1770633477438,0.01939391,2023.4,2022.4,0.98980294]
[1770633477603,0.01939391,2023.4,2022.6,0.91628074]
[1770633477795,0.01939391,2023.4,2022.7,0.98980294]
[1770633477989,0.002,2024.5,2022.7,0.98980294]
[1770633478191,1.236915,2024.5,2023.3,0.0735222]
[1770633478413,1.236915,2024.5,2023.0,0.91628074]
[1770633478805,0.002,2024.5,2023.1,1.30924954]
[1770633479193,0.002,2024.5,2023.4,0.0735222]
[1770633479418,0.002,2024.5,2023.5,0.0735222]
[1770633479620,0.002,2024.5,2023.5,0.98980294]
[1770633479801,0.002,2024.5,2023.8,0.0735222]
[1770633480001,0.002,2024.5,2023.5,0.91628074]
[1770633480323,0.002,2024.5,2023.6,0.98980294]
[1770633480525,0.002,2024.5,2023.9,0.0735222]
[1770633480821,0.002,2024.5,2024.0,0.0735222]
[1770633481023,0.002,2024.7,2024.0,0.98980294]
[1770633481491,0.002,2025.6,2024.6,0.0735222]
[1770633481693,0.002,2025.6,2024.8,4.985353]
[1770633481923,0.002,2025.6,2024.7,3.37785]
[1770633482228,0.002,2025.6,2025.0,0.98980294]
[1770633482447,0.002,2026.1,2025.3,0.0735222]
[1770633482739,0.002,2026.1,2025.4,1.23432408]
[1770633482897,0.002,2026.1,2025.0,0.91628074]
[1770633483093,0.68089633,2025.3,2024.2,1.23502249]
[1770633483412,0.99296633,2025.9,2024.2,0.98980294]
[1770633483622,0.99296633,2025.9,2024.5,1.23486362]
[1770633483924,0.99296633,2025.9,2024.2,0.91628074]
[1770633484101,1.06648853,2025.7,2023.8,0.91628074]
[1770633484308,0.99296633,2025.7,2024.3,1.23495018]
[1770633484505,0.99296633,2025.7,2024.2,1.23499569]
[1770633484709,1.23395853,2026.0,2024.4,0.0735222]
[1770633484894,1.23395853,2026.0,2024.5,1.2348728]
[1770633485400,1.23395853,2026.0,2024.7,0.0735222]
[1770633485645,1.23395853,2026.0,2025.0,0.0735222]
[1770633485823,1.23395853,2026.0,2024.5,1.2348728]
[1770633486025,0.99296633,2025.9,2024.4,1.23493237]
[1770633486228,1.23395853,2026.0,2024.5,3.7174532]
[1770633486536,1.23395853,2026.0,2024.5,2.099055]
[1770633486737,1.23395853,2026.0,2024.7,0.0735222]
[1770633486901,4.93783415,2026.1,2024.8,1.23468984]
[1770633487297,0.002,2026.1,2025.3,0.0735222]
[1770633487832,0.002,2026.1,2025.6,0.0735222]
[1770633488734,0.002,2026.1,2025.4,0.0735222]
[1770633488929,0.002,2026.1,2025.7,0.0735222]
[1770633489142,0.002,2025.5,2022.2,2.0510249]
[1770633489301,0.002,2025.5,2025.1,1.23447528]
[1770633489701,0.002,2025.5,2024.8,1.23465042]
[1770633489923,0.002,2025.5,2024.9,1.2346184]
[1770633490126,0.002,2025.5,2024.8,1.23465452]
[1770633490300,0.002,2025.5,2024.6,0.98980294]
[1770633490301,0.002,2025.5,2024.5,4.93933459]
[1770633490632,0.002,2025.5,2024.3,1.23496148]
[1770633490825,0.002,2025.5,2023.9,4.94093224]
[1770633491006,0.99496633,2025.5,2023.6,1.30889896]
[1770633491328,1.06648853,2025.1,2023.5,1.23548201]
[1770633491537,0.99496633,2025.5,2023.7,1.23533451]
[1770633491828,0.99496633,2025.5,2024.0,0.0735222]
[1770633492917,0.002,2025.5,2024.3,0.0735222]
[1770633493161,0.002,2025.5,2025.0,2.295338]
[1770633493450,0.002,2025.7,2025.2,0.0735222]
[1770633494212,0.002,2025.7,2025.0,5.83028074]
[1770633494464,0.002,2025.7,2025.2,0.0735222]
[1770633494950,0.002,2025.7,2025.3,1.23438502]
[1770633495246,0.002,2025.7,2025.0,0.91628074]
[1770633495449,0.002,2025.7,2025.2,1.23444424]
[1770633495681,0.002,2025.7,2025.0,1.23453898]
[1770633495811,0.002,2025.7,2025.0,1.23452765]
[1770633496014,0.002,2025.7,2024.8,3.452]
[1770633496270,1.16577719,2025.5,2023.2,0.0735222]
[1770633496549,1.16577719,2025.5,2022.7,1.48315106]
[1770633496550,11.78396456,2024.7,2022.8,2.445]
[1770633496748,0.98985499,2024.5,2022.8,1.23586447]
[1770633496952,2.22497183,2024.1,2022.1,3.452]
[1770633497136,0.98985499,2023.6,2021.8,0.91125613]
[1770633497443,0.98985499,2023.4,2022.1,1.23629506]
[1770633497616,10.79410957,2023.7,2022.3,1.23621334]
[1770633497812,0.9029801,2023.6,2022.3,1.23620008]
[1770633498418,0.9029801,2023.6,2022.2,4.94486475]
[1770633498419,0.9765023,2023.6,2022.2,1.23623764]
[1770633498643,0.9765023,2023.6,2022.3,1.23620344]
[1770633498829,0.9029801,2023.6,2022.3,1.23621201]
[1770633499142,3.452,2023.9,2022.4,0.0735222]
[1770633499551,4.3549801,2023.9,2022.1,4.94533033]
[1770633499853,0.9029801,2023.8,2022.3,0.0735222]
[1770633500024,3.452,2023.9,2022.3,0.0735222]
[1770633500225,4.3549801,2023.9,2022.1,4.94533033]
[1770633500557,10.79410957,2023.7,2022.1,4.94533033]
[1770633501050,1.23542202,2023.6,2022.1,4.94533033]
[1770633501225,1.23542202,2023.6,2022.6,0.001]
[1770633502437,0.9029801,2023.4,2022.4,0.001]
[1770633502776,1.23542202,2023.6,2022.4,0.001]
[1770633502933,1.23554413,2023.4,2022.4,0.001]
[1770633504756,0.9029801,2023.3,2022.4,0.001]
[1770633505142,1.23566627,2023.2,2022.4,0.001]
[1770633506727,0.9029801,2023.1,2021.4,4.9470245]
[1770633506927,0.9029801,2023.0,2021.4,1.23676659]
[1770633507134,1.23584952,2022.9,2021.3,1.23681814]
[1770633507558,2.13882962,2022.9,2021.3,1.23681814]
[1770633508195,1.23584952,2022.9,2021.4,2.337]
[1770633508330,0.9029801,2022.8,2021.3,1.23681814]
[1770633508530,3.454,2022.7,2021.3,1.23681814]
[1770633509563,1.23603282,2022.6,2021.1,1.23694405]
[1770633509862,1.23603282,2022.6,2021.1,1.23694373]
[1770633509863,0.9029801,2022.4,2021.1,1.23694373]
[1770633510062,0.9029801,2022.4,2021.0,1.23700014]
[1770633510252,0.9765023,2022.4,2020.9,1.23706387]
[1770633510564,1.23603282,2022.6,2021.3,0.0735222]
[1770633510733,3.454,2022.4,2021.1,1.23694334]
[1770633510930,4.69003282,2022.6,2021.3,1.01990999]
[1770633511667,4.69003282,2022.6,2021.4,1.23676659]
[1770633512058,4.69003282,2022.6,2021.4,1.31028879]
[1770633512362,5.8455679,2023.3,2021.4,1.31028879]
[1770633512363,4.94266508,2023.4,2022.0,0.0735222]
[1770633512677,3.455,2023.3,2022.2,0.0735222]
[1770633513046,3.455,2023.3,2022.2,2.228]
[1770633513254,3.455,2023.3,2022.2,7.72782]
[1770633513640,1.23566627,2023.2,2022.3,1.23621618]
[1770633514160,4.69063315,2023.3,2022.4,0.0735222]
[1770633514585,4.69063315,2023.3,2022.3,1.23621618]
[1770633514784,4.69062912,2023.3,2022.4,0.0735222]
[1770633514992,4.69062912,2023.3,2022.3,1.23621618]
[1770633515154,1.23738449,2023.7,2022.4,1.01990999]
[1770633515353,1.23738449,2023.7,2022.7,0.0735222]
[1770633515354,0.002,2023.7,2022.7,0.0735222]
[1770633515567,1.23737289,2023.7,2022.3,1.23621618]
[1770633515862,0.002,2023.7,2022.2,4.94486475]
[1770633516065,0.002,2023.7,2022.4,0.0735222]
[1770633516380,0.002,2023.7,2022.3,0.94638779]
[1770633516765,0.002,2023.7,2022.4,1.01990999]
[1770633517083,0.002,2023.7,2022.7,0.0735222]
[1770633517783,0.002,2023.7,2023.2,7.914902]
[1770633517983,0.002,2023.9,2023.3,0.0735222]
[1770633518287,1.23472924,2024.8,2023.6,0.0735222]
[1770633518460,3.455,2024.8,2023.3,0.0735222]
[1770633518792,3.455,2024.8,2024.0,0.0735222]
[1770633519015,3.455,2024.8,2023.7,2.55772]
[1770633519302,3.455,2024.8,2023.9,0.0735222]
[1770633519464,3.455,2024.8,2023.3,0.1759222]
[1770633519668,3.455,2024.8,2023.4,2.004]
[1770633520054,1.23475082,2024.7,2023.6,1.2353863]
[1770633520493,1.23475082,2024.7,2023.2,0.94638779]
[1770633520800,2.13773092,2024.7,2023.2,1.23563409]
[1770633521158,2.13773092,2024.7,2023.2,1.23566609]
[1770633521360,2.13773092,2024.7,2022.8,0.94638779]
[1770633521584,2.13773092,2024.7,2023.1,1.23568565]
[1770633521879,0.9765023,2024.5,2023.2,1.23563894]
[1770633522060,1.2349338,2024.4,2022.9,1.23584952]
[1770633522259,2.1379139,2024.4,2022.9,1.23584952]
[1770633522481,1.2349338,2024.4,2023.4,0.0735222]
[1770633522654,1.2349338,2024.4,2023.1,1.01990999]
[1770633523051,1.2349338,2024.4,2023.4,0.0735222]
[1770633523280,4.93942207,2024.6,2023.5,0.0735222]
[1770633523483,3.454,2024.8,2023.8,0.0735222]
[1770633523673,4.68871241,2024.8,2023.8,0.0735222]
[1770633523868,4.6887156,2024.8,2023.8,0.0735222]
[1770633524070,4.6887156,2024.8,2023.9,1.23523889]
[1770633524272,4.6887156,2024.8,2023.8,1.23529949]
[1770633524774,4.6887156,2024.8,2023.8,1.30882169]
[1770633525178,4.6887156,2024.8,2023.9,0.0735222]
[1770633525369,4.6887156,2024.8,2023.8,1.23529766]
[1770633526976,4.6887156,2024.8,2023.8,1.30881986]
[1770633527487,4.6887156,2024.8,2023.8,1.23529766]
[1770633527690,0.002,2024.6,2023.8,1.23529766]
[1770633528177,0.002,2024.6,2023.8,0.0735222]
[1770633528380,0.002,2024.6,2023.5,1.23547479]
[1770633528767,0.002,2024.6,2023.3,1.23560046]
[1770633529161,0.002,2024.6,2023.3,1.23556903]
[1770633529364,0.002,2024.6,2023.4,1.23554364]
[1770633529572,0.002,2024.6,2023.3,1.23557206]
[1770633529972,0.98176935,2024.5,2023.2,1.23562608]
[1770633530196,1.2349338,2024.4,2023.2,1.3091452]
[1770633530373,11.74323014,2024.2,2022.6,1.23699521]
[1770633530575,0.98176935,2024.1,2022.6,0.001]
[1770633530773,10.76146079,2024.2,2022.6,0.001]
[1770633530774,0.98176935,2023.9,2022.6,0.001]
[1770633531095,3.6289222,2024.0,2022.6,0.001]
[1770633531096,11.74323014,2023.7,2022.6,0.001]
[1770633531296,0.98176935,2023.7,2022.6,0.001]
[1770633532093,1.23523889,2023.9,2022.6,0.001]
[1770633532295,3.453,2023.8,2022.6,0.001]
[1770633534008,10.76146079,2023.5,2022.6,0.001]
[1770633534209,1.23554413,2023.4,2022.6,0.001]
[1770633534387,1.23551333,2023.5,2022.6,0.001]
[1770633534697,4.68951333,2023.5,2022.6,0.001]
[1770633535005,3.454,2023.5,2022.6,0.001]
[1770633536809,1.23554413,2023.4,2022.6,0.001]
[1770633538611,4.68952082,2023.5,2022.6,0.001]
[1770633538796,4.68952082,2023.5,2022.6,0.0745222]
[1770633539108,4.68952082,2023.5,2022.6,1.31055502]
[1770633539303,4.68945903,2023.6,2022.6,2.27362767]
[1770633539803,4.68945903,2023.6,2021.3,2.20086833]
[1770633539804,0.1024,2023.1,2021.3,2.20086833]
[1770633539987,0.1024,2023.1,2021.3,2.20086972]
[1770633539988,0.1759222,2023.1,2021.3,2.20086972]
[1770633540182,0.1759222,2023.1,2021.4,1.23675399]
[1770633540410,0.0735222,2022.8,2021.3,0.001]
[1770633540610,0.1024,2022.6,2021.3,0.001]
[1770633540910,1.23615506,2022.4,2021.3,0.001]
[1770633541819,3.454,2022.7,2021.7,0.0735222]
[1770633541986,4.68997221,2022.7,2021.4,1.03659485]
[1770633542182,4.68997221,2022.7,2021.4,0.96307265]
[1770633542394,4.68997221,2022.7,2021.5,0.0735222]
[1770633542912,4.68997221,2022.7,2021.6,1.23664424]
[1770633543288,4.68997221,2022.7,2021.5,1.23669068]
[1770633543885,1.23597221,2022.7,2021.5,1.23669068]
[1770633544089,4.69097221,2022.7,2021.7,0.0735222]
[1770633544306,4.69097283,2022.7,2021.7,1.03659485]
[1770633544533,4.6909832,2022.7,2021.7,1.03659485]
[1770633544700,4.94220818,2023.4,2022.0,0.0735222]
[1770633544903,1.23566627,2023.2,2022.1,1.23633846]
[1770633545933,1.23277709,2023.2,2022.1,1.23633846]
[1770633546132,1.23277709,2023.2,2022.2,0.96307265]
[1770633546133,1.23121392,2023.2,2022.2,0.96307265]
[1770633546326,4.68889854,2023.3,2022.3,0.96307265]
[1770633546522,4.68706673,2023.3,2022.3,0.96307265]
[1770633546832,4.68706673,2023.3,2021.9,0.96307265]
[1770633547030,4.68706673,2023.3,2021.5,0.96307265]
[1770633547331,4.68706673,2023.3,2021.9,1.23645585]
[1770633547512,4.68706673,2023.3,2021.5,0.96307265]
[1770633547712,4.68706673,2023.3,2021.8,1.23651623]
[1770633548213,4.68706673,2023.3,2021.8,1.2365148]
[1770633548627,4.68706673,2023.3,2021.6,4.94651516]
[1770633548835,0.98176935,2023.1,2021.5,1.23667791]
[1770633549132,2.21755778,2023.0,2021.4,1.23672311]
[1770633549720,2.21755778,2023.0,2021.4,1.31024531]
[1770633550230,1.23578843,2023.0,2021.5,0.96307265]
[1770633550438,1.23578843,2023.0,2022.0,0.0735222]
[1770633550737,3.455,2022.9,2021.9,0.96307265]
[1770633550932,3.455,2022.9,2022.0,0.0735222]
[1770633551108,1.23591061,2022.8,2022.1,1.23633846]
[1770633551505,1.23591061,2022.8,2022.0,2.19942765]
[1770633551704,1.23591061,2022.8,2022.0,2.27294985]
[1770633552125,3.455,2022.9,2022.1,0.96307265]
[1770633552435,4.69085519,2022.9,2022.0,1.236355]
[1770633552628,4.69085519,2022.9,2022.0,1.3098772]
[1770633553029,4.69085519,2022.9,2021.9,1.23646075]
[1770633553221,4.69085519,2022.9,2021.8,2.27310286]
[1770633553415,4.69085519,2022.9,2021.1,0.0735222]